{"text_format":"1","workbook":"xlsx","n_sheets":1,"sheets":["Preisliste"],"not_rendered":{"charts":0,"images":92,"macros":1,"external_links":0,"defined_names":1,"comments":0,"pivot_tables":0},"unopened":[],"bounds":{"document_bytes":16777216,"sheet_cells":100000,"rows_first":2000,"rows_last":500,"rows_between":2000,"halvings":0,"cell_chars":16384,"cell_head_chars":4096},"cells_cut":0,"cells_raw":0,"read":"whole","date_system":"1900"}

{"sheet":"Preisliste","index":0,"n_rows":118,"n_cols":12,"rows_kept":118,"cut":false,"hidden":false,"merged":[]}
[]
["Anzahl","Bild","Referenz\nALT","Katelogrie","Referenz\nNEU","Artikelnr.","Bezeichnung","Kommentar","Abmessungen HxLxT","Katalog-\nartikel","Listenpreis\nPromerka\n2018","Einkaufspreis\nFAGSI -25%\n2019"]
[0,null,"RE-BA-017","1-1 Klappbänke",null,null,"Klappebank sitzen – Vorstand Tanne Firnis","Nicht im Sortiment","45 x 160 x 43cm","Nicht im Soritment"]
[0,null,"RE-BA-018","1-1 Klappbänke",null,null,"Klappebank sitzen – Vorstand Tanne Firnis","Nicht im Sortiment","45 x 200 x 43cm","Nicht im Soritment"]
[null,null,"FTBSH168","1-1 Klapptiische","KIRA","TA-PL-004","Klapptisch H Füsse hellgrau",null,"74 x 160 x 80cm","ja",163.55000000000001,{"$f":"Tableau1[[#This Row],[Listenpreis\nPromerka\n2018]]*0.75","v":122.66250000000001}]
[null,null,null,"1-1 Klapptiische","KAROLINA","TA-PL-005","Klapptisch T Füsse hellgrau",null,"74 x 160 x 80cm","ja",163.55000000000001,{"$f":"Tableau1[[#This Row],[Listenpreis\nPromerka\n2018]]*0.75","v":122.66250000000001}]
[0,null,"BU-TP-004","1-1 Klapptische",null,null,"Klapptisch – Vorstand Tanne Firnis ","Nicht im Sortiment","74 x 160 x 70cm","Nicht im Soritment"]
[0,null,"BU-TP-005","1-1 Klapptische",null,null,"Klapptisch – Vorstand Tanne Firnis ","Nicht im Sortiment","74 x 200 x 70cm","Nicht im Soritment"]
[0,null,"MUNICH","1-1 Klapptische","MUNICH",78707,"SET : 1 Tisch und 2 Bänke Holz",null,"74 x 220 x 80cm","ja",164.65,{"$f":"Tableau1[[#This Row],[Listenpreis\nPromerka\n2018]]*0.75","v":123.48750000000001}]
[0,null,"MPGS2","1-1 Rollcontainer","TYRION-2",5410210,"Rollcontainer 2 Schubladen - graue Türen",null,"57 x 46 x 60cm","nein",155,{"$f":"Tableau1[[#This Row],[Listenpreis\nPromerka\n2018]]*0.75","v":116.25}]
[0,null,"TYRION","1-1 Rollcontainer","TYRION",5410110,"Rollcontainer 3 Schubladen - graue Türen",null,"57 x 46 x 60cm","ja",155,{"$f":"Tableau1[[#This Row],[Listenpreis\nPromerka\n2018]]*0.75","v":116.25}]
[0,null,"VENISE","1-1 Tische","VENISE","VENISE","Cafeteria Tisch Aluminium",null,"110 x Ø60cm","ja",83.4,{"$f":"Tableau1[[#This Row],[Listenpreis\nPromerka\n2018]]*0.75","v":62.550000000000004}]
[0,null,"MTBR108","1-1 Tische",null,null,"Tisch MFC hellgrau, 4 Metall Füße","Auf Anfrage erhältlich","75 x 100 x 80cm","Auf Anfrage"]
[0,null,"ELENA120","1-1 Tische","ELENA120",5118121,"Tisch MFC hellgrau, 4 Metall Füße",null,"75 x 120 x 80cm","ja",91.5,{"$f":"Tableau1[[#This Row],[Listenpreis\nPromerka\n2018]]*0.75","v":68.625}]
[0,null,"MTBR148","1-1 Tische","ELENA140",5118140,"Tisch MFC hellgrau, 4 Metall Füße",null,"75 x 140 x 80cm","ja",108.1,{"$f":"Tableau1[[#This Row],[Listenpreis\nPromerka\n2018]]*0.75","v":81.074999999999989}]
[0,null,"ELENA160","1-1 Tische","ELENA160",5118160,"Tisch MFC hellgrau, 4 Metall Füße",null,"75 x 160 x 80cm","ja",118.25,{"$f":"Tableau1[[#This Row],[Listenpreis\nPromerka\n2018]]*0.75","v":88.6875}]
[0,null,"MTBR168","1-1 Tische","ELENA160",5118160,"Tisch MFC hellgrau, 4 Metall Füße",null,"75 x 160 x 80cm","ja",118.25,{"$f":"Tableau1[[#This Row],[Listenpreis\nPromerka\n2018]]*0.75","v":88.6875}]
[0,null,"MTBR188","1-1 Tische","ELENA180",5118180,"Tisch MFC hellgrau, 4 Metall Füße",null,"75 x 180 x 80cm","ja",132.30000000000001,{"$f":"Tableau1[[#This Row],[Listenpreis\nPromerka\n2018]]*0.75","v":99.225000000000009}]
[0,null,"ELENA200","1-1 Tische","ELENA200",5118200,"Tisch MFC hellgrau, 4 Metall Füße",null,"75 x 200 x 80cm","ja",143.65,{"$f":"Tableau1[[#This Row],[Listenpreis\nPromerka\n2018]]*0.75","v":107.73750000000001}]
[0,null,"MTBR210","1-1 Tische","ELENA200/1",5118201,"Tisch MFC hellgrau, 4 Metall Füße",null,"75 x 200 x 100cm","ja",164.15,{"$f":"Tableau1[[#This Row],[Listenpreis\nPromerka\n2018]]*0.75","v":123.11250000000001}]
[0,null,null,"1-1 Tische","ELENA080",5118080,"Tisch MFC hellgrau, 4 Metall Füße",null,"75 x 80 x 80cm","nein",82.1,{"$f":"Tableau1[[#This Row],[Listenpreis\nPromerka\n2018]]*0.75","v":61.574999999999996}]
[0,null,"FRANKY","1-3 Schränke Metall","FRANKY",6110140,"Universalschrank Metall ohne Türen ",null,"195 x 92 x 42cm","ja",266.55,{"$f":"Tableau1[[#This Row],[Listenpreis\nPromerka\n2018]]*0.75","v":199.91250000000002}]
[0,null,"KLEINY","1-3 Schränke Metall","KLEINY",6110141,"Universalschrank Metall ohne Türen ",null,"180 x 80 x 38cm","ja",223.85,{"$f":"Tableau1[[#This Row],[Listenpreis\nPromerka\n2018]]*0.75","v":167.88749999999999}]
[null,null,null,"1-3 Schränke Metall",null,6110138,"Universalschrank Metall ohne Türen ",null,"100 x 80 x 38cm","nein",192.5,{"$f":"Tableau1[[#This Row],[Listenpreis\nPromerka\n2018]]*0.75","v":144.375}]
[0,null,"BKC1233","1-3 Schränke Metall",null,null,"Universalschrank Metall ohne Türen ","Nicht im Sortiment","120 x 100 x 33cm","Nicht im Soritment"]
[0,null,"FLC10","1-3 Schränke Metall Flügeltüren","MICRO",6110160,"Flügeltürenschrank Metall hellgrau, 2 Regale",null,"100 x 80 x 38cm","ja",229.1,{"$f":"Tableau1[[#This Row],[Listenpreis\nPromerka\n2018]]*0.75","v":171.82499999999999}]
[0,null,"FLC12","1-3 Schränke Metall Flügeltüren","FRANCIS",6110150,"Flügeltürenschrank Metall hellgrau, 2 Regale",null,"120 x 92 x 42cm","nein",241.2,{"$f":"Tableau1[[#This Row],[Listenpreis\nPromerka\n2018]]*0.75","v":180.89999999999998}]
[0,null,"FLC19","1-3 Schränke Metall Flügeltüren","FRANK",6110110,"Flügeltürenschrank Metall hellgrau, 4 Regale, 5 Ordnerhöhen",null,"195 x 92 x 42cm","ja",295.95,{"$f":"Tableau1[[#This Row],[Listenpreis\nPromerka\n2018]]*0.75","v":221.96249999999998}]
[0,null,"KLEIN","1-3 Schränke Metall Flügeltüren","KLEIN",6110120,"Flügeltürenschrank Metall hellgrau, 4 Regale, 5 Ordnerhöhen",null,"180 x 80 x 38cm","ja",244,{"$f":"Tableau1[[#This Row],[Listenpreis\nPromerka\n2018]]*0.75","v":183}]
[0,null,"FLC192","1-3 Schränke Metall Flügeltüren","FRANK120",6110100,"Flügeltürenschrank Metall hellgrau, 4 Regale, 5 Ordnerhöhen",null,"195 x 120 x 42cm","nein",343.2,{"$f":"Tableau1[[#This Row],[Listenpreis\nPromerka\n2018]]*0.75","v":257.39999999999998}]
[0,null,"FRANK","1-3 Schränke Metall Flügeltüren","FRANK PLAT",6010110,"Flügeltürenschrank Metall hellgrau, 4 Regale, 5 Ordnerhöhen, im KIT (zerlegt)",null,"195 x 92 x 42cm","ja",221.3,{"$f":"Tableau1[[#This Row],[Listenpreis\nPromerka\n2018]]*0.75","v":165.97500000000002}]
[0,null,"UNC18","1-3 Schränke Metall Flügeltüren",null,null,"Schrank Metall hellgrau, eine Seite mit 3 Regale und eine Seite Garderobe","Auf Anfrage erhältlich","180 x 80 x 38cm","Auf Anfrage"]
[0,null,"UNC19","1-3 Schränke Metall Flügeltüren","ULYS",6015100,"Schrank Metall hellgrau, eine Seite mit 3 Regale und eine Seite Garderobe",null,"195 x 92 x 42cm","ja",317.95,{"$f":"Tableau1[[#This Row],[Listenpreis\nPromerka\n2018]]*0.75","v":238.46249999999998}]
[0,null,"FSC1995","1-3 Schränke Metall Flügeltüren",null,null,"Sicherheit Schrank 4 Regale – Graue Türen","Nicht im Sortiment","195 x 95 x 55cm","Nicht im Soritment"]
[null,null,null,"1-3 Schränke Metall Plan","MARKUS",10530340,"Planschrank Metall, 18 kleine Fächer, 2 grosse Fächer",null,"195 x 92 x 42cm","ja",402,{"$f":"Tableau1[[#This Row],[Listenpreis\nPromerka\n2018]]*0.75","v":301.5}]
[0,null,"FRED","1-3 Schränke Metall Plan","FRED",6110145,"Planschrank Metall, 32 kleine Fächer, 4 grosse Fächer",null,"195 x 100 x 42cm","ja",445.25,{"$f":"Tableau1[[#This Row],[Listenpreis\nPromerka\n2018]]*0.75","v":333.9375}]
[null,null,null,"1-3 Schränke Metall Rollladen","SONIA",6111150,"Rollladenschrank Metall hellgrau, 1 Regale, 12 Ordnerhöhen",null,"75 x 120 x 45cm","ja",267.75,{"$f":"Tableau1[[#This Row],[Listenpreis\nPromerka\n2018]]*0.75","v":200.8125}]
[0,null,"SDC1312","1-3 Schränke Metall Rollladen","ROLITO",6111120,"Rollladenschrank Metall hellgrau, 2 Regale, 3 Ordnerhöhen",null,"135 x 120 x 45cm","ja",372.4,{"$f":"Tableau1[[#This Row],[Listenpreis\nPromerka\n2018]]*0.75","v":279.29999999999995}]
[null,null,null,"1-3 Schränke Metall Rollladen",null,6111130,"Rollladenschrank Metall hellgrau, 2 Regale, 3 Ordnerhöhen",null,"105 x 120 x 45cm","ja",300,{"$f":"Tableau1[[#This Row],[Listenpreis\nPromerka\n2018]]*0.75","v":225}]
[0,null,"SDC101040","1-3 Schränke Metall Rollladen",null,null,"Rollladenschrank Metall hellgrau, 2 Regale, 3 Ordnerhöhen","Nicht im Sortiment","105 x 100 x 40cm","Nicht im Soritment"]
[0,null,"SDC1912","1-3 Schränke Metall Rollladen","ROLO",6111100,"Rollladenschrank Metall hellgrau, 4 Regale, 5 Ordnerhöhen",null,"195 x 120 x 45cm","ja",523.1,{"$f":"Tableau1[[#This Row],[Listenpreis\nPromerka\n2018]]*0.75","v":392.32500000000005}]
[0,null,"SDC181040","1-3 Schränke Metall Rollladen",null,null,"Rollladenschrank Metall hellgrau, 4 Regale, 5 Ordnerhöhen","Nicht im Sortiment","180 x 100 x 40cm","Nicht im Soritment"]
[0,null,"SLC0712","1-3 Schränke Metall Schiebetüren",null,null,"Schiebetürenschrank Metall hellgrau","Nicht im Sortiment","75 x 120 x 45cm","Nicht im Soritment"]
[0,null,"FGC2","1-3-1 Schränke",null,null,"Hängeregistraturschrank mit 2 Schubladen – Graue Türen","Nicht im Sortiment","70 x 43 x 62 cm","Nicht im Soritment"]
[0,null,"FGC3","1-3-1 Schränke",null,null,"Hängeregistraturschrank mit 3 Schubladen – Graue Türen","Nicht im Sortiment","101 x 43 x 62cm","Nicht im Soritment"]
[0,null,"FGC4","1-3-1 Schränke",null,null,"Hängeregistraturschrank mit 4 Schubladen – Graue Türen","Nicht im Sortiment","132 x 43 x 62cm","Nicht im Soritment"]
[0,null,"FGCD2","1-3-1 Schränke",null,null,"Schrank mit 2  Schubladen – Graue Türen","Nicht im Sortiment","70 x 82 x 62cm","Nicht im Soritment"]
[0,null,"FGCD3","1-3-1 Schränke",null,null,"Schrank mit 3 Schubladen – Graue Türen","Nicht im Sortiment","101 x 82 x 62cm","Nicht im Soritment"]
[0,null,"AC-P-005","1-4 Garderobe",null,null,"Kleiderhaken 4 Köpfe - Grau","Nicht im Sortiment","7 x 61cm","Nicht im Soritment"]
[0,null,"AC-P-006","1-4 Garderobe",null,null,"Kleiderhaken 5 Köpfe - Grau","Nicht im Sortiment","7 x 78.5cm","Nicht im Soritment"]
[0,null,"EIFFEL","1-4 Garderobe","EIFFEL","EIFFEL","Kleiderständer Regenschirmständer  -Schwarz",null,"168 x Ø42cm","ja",57.4,{"$f":"Tableau1[[#This Row],[Listenpreis\nPromerka\n2018]]*0.75","v":43.05}]
[0,null,"STH10196","1-4 Garderobe",null,null,"Leiste mit 10 Kleiderhaken - Holz","Auf Anfrage erhältlich","11 x 196 x 45cm","Auf Anfrage"]
[0,null,"AC-P-017","1-4 Garderobe",null,null,"Metall Wand Tragmantel mit Tablett 5 Hacken – Grau","Nicht im Sortiment","15 x 71cm","Nicht im Soritment"]
[0,null,"HNG6","1-4 Garderobe","HNG6","15310601032","Wandgarderobe Metall mit Hutablage 6 Hacken – schwarz",null,"18.3 x 84 x 22cm","ja",55.55,{"$f":"Tableau1[[#This Row],[Listenpreis\nPromerka\n2018]]*0.75","v":41.662499999999994}]
[0,null,null,"1-4 Garderobenbänke",null,null,"Garderobenbank - einziger aus Holz - 6 Haken ","Nicht im Sortiment","170 x 150 x 50 cm","Nicht im Soritment"]
[0,null,"SRB160","1-4 Garderobenbänke",null,null,"Sitzbank mit Garderoben einseitig – Holzlatte Lack","Auf Anfrage erhältlich","40 x 160 x 40cm","Auf Anfrage"]
[0,null,"SRB200","1-4 Garderobenbänke",null,null,"Sitzbank mit Garderoben einseitig – Holzlatte Lack","Auf Anfrage erhältlich","40 x 200 x 40cm","Auf Anfrage"]
[0,null,"SBU120","1-4 Garderobenbänke",null,null,"Sitzbank mit Garderoben einseitig – Holzlatte Lack","Nicht im Sortiment","189 x 120 x 40cm","Nicht im Soritment"]
[0,null,"SBU200","1-4 Garderobenbänke",null,null,"Sitzbank mit Garderoben einseitig – Holzlatte Lack","Nicht im Sortiment","189 x 200 x 40cm","Nicht im Soritment"]
[0,null,"DBU200","1-4 Garderobenbänke",null,null,"Sitzbank mit Garderobenleisten doppelseitig – Holzlatte Lack","Nicht im Sortiment","189 x 200 x 80cm","Nicht im Soritment"]
[0,null,"STB120","1-4 Garderobenbänke",null,null,"Stapelbar Bank 3 Latten – Braun Füsse","Nicht im Sortiment","45 x 120 x 43cm","Nicht im Soritment"]
[0,null,"STB160","1-4 Garderobenbänke",null,null,"Stapelbar Bank 3 Latten – Braun Füsse","Nicht im Sortiment","45 x 160 x 43cm","Nicht im Soritment"]
[0,null,"STB200","1-4 Garderobenbänke",null,null,"Stapelbar Bank 3 Latten – Braun Füsse","Nicht im Sortiment","45 x 200 x 43cm","Nicht im Soritment"]
[0,null,"WRB60","1-4 Garderobenschränke","SOCLE60",6017102,"Sitzbank für Garderobenschrank – 3 Lackholzlatten",null,"40 x 60 x 80cm","ja",70.5,{"$f":"Tableau1[[#This Row],[Listenpreis\nPromerka\n2018]]*0.75","v":52.875}]
[0,null,"WRB80","1-4 Garderobenschränke","SOCLE80",6017103,"Sitzbank für Garderobenschrank – 3 Lackholzlatten",null,"40 x 80 x 80cm","ja",81,{"$f":"Tableau1[[#This Row],[Listenpreis\nPromerka\n2018]]*0.75","v":60.75}]
[0,null,"CARLOS","1-4 Garderobenschränke","CARLOS",6010120,"Spind mit 2 Türen auf Sockel Drehriegel – Blaue Tür (Auf Anfrage in Grau erhältlich)",null,"180 x 60 x 50cm","ja",208.85,{"$f":"Tableau1[[#This Row],[Listenpreis\nPromerka\n2018]]*0.75","v":156.63749999999999}]
[0,null,"WRD21880","1-4 Garderobenschränke","RUBEN",6011120,"Spind mit 2 Türen und Separation auf Sockel Drehriegel – Blaue Tür (auf Anfrage in Grau erhältlich)",null,"180 x 80 x50cm","ja",281.89999999999998,{"$f":"Tableau1[[#This Row],[Listenpreis\nPromerka\n2018]]*0.75","v":211.42499999999998}]
[0,null,"WRC31890 ","1-4 Garderobenschränke","JOSE",6010130,"Spind mit 3 Türen auf Sockel Drehriegel – Blaue Tür (auf Anfrage in Grau erhältlich)",null,"180 x 90 x 50cm","ja",291,{"$f":"Tableau1[[#This Row],[Listenpreis\nPromerka\n2018]]*0.75","v":218.25}]
[0,null,"WRC418060","1-4 Garderobenschränke","ROBERTO",6012340,"Spind mit 4 Türen KLEIN auf Sockel Drehriegel – Blaue Tür (Auf Anfrage in Grau erhältlich)",null,"180 x 90 x 50cm","ja",232.35,{"$f":"Tableau1[[#This Row],[Listenpreis\nPromerka\n2018]]*0.75","v":174.26249999999999}]
[0,null,"MBB1","1-6 Betten & Zubehör","ROLAND1",6016122,"Bett: 1 Person",null,"102 x 200 x 98cm","ja",168.8,{"$f":"Tableau1[[#This Row],[Listenpreis\nPromerka\n2018]]*0.75","v":126.60000000000001}]
[0,null,"MBB2","1-6 Betten & Zubehör","ROLAND2",6016111,"Etagenbett: 2 Personen",null,"160 x 200 x 98cm","ja",262.2,{"$f":"Tableau1[[#This Row],[Listenpreis\nPromerka\n2018]]*0.75","v":196.64999999999998}]
[0,null,"PSR532","2-1 Rollcontainer","CHICO","PSR532","Rollcontainer 3 Schubladen – weiss",null,"51 x 41.5x 50cm","ja",132,{"$f":"Tableau1[[#This Row],[Listenpreis\nPromerka\n2018]]*0.75","v":99}]
[0,null,"PSS642","2-1 Rollcontainer",null,null,"Standcontainer 4 Schubladen weiss, graue Griffe","Auf Anfrage erhältlich","72 x 60 x 43cm","Auf Anfrage"]
[0,null,"CZM202","2-1 Tische",null,null,"Besprechungstisch – Silber Füsse","Auf Anfrage erhältlich","72 x 200 x 100cm","Auf Anfrage"]
[0,null,"DBA161","2-1 Tische",null,null,"Bürotisch runde Füße – weisse Platte, silberne Füße","Nicht im Sortiment","72 x 160 x 80cm","Nicht im Soritment"]
[0,null,"DBL161","2-1 Tische",null,null,"Bürotisch runde Füße Ecke links – silberne Füße","Nicht im Sortiment","72 x 160 x 120cm","Nicht im Soritment"]
[0,null,"DBD061","2-1 Tische",null,null,"Bürotisch Zusatz – silberne Füße","Nicht im Sortiment","72 x 60 x 60cm","Nicht im Soritment"]
[0,null,"CZM100","2-1 Tische",null,null,"Circular Besprechungstisch – weisse Platte, silberne Füsse","Auf Anfrage erhältlich","72 x Ø 100cm","Auf Anfrage"]
[0,null,"MTBRCR80","2-1 Tische",null,null,"Rundtisch – graue Füsse","Nicht im Sortiment","75 x Ø 80cm","Nicht im Soritment"]
[0,null,"E2C082","2-3 Schränke Holz",null,null,"Flügeltürenschrank Holz","Nicht im Sortiment","81 x 80 x 36cm","Nicht im Soritment"]
[0,null,"E5C082","2-3 Schränke Holz",null,null,"Flügeltürenschrank Holz","Nicht im Sortiment","72 x 120 x 60cm","Nicht im Soritment"]
[0,null,"PXL620","2-3 Schränke Holz",null,null,"Schiebetürenschrank – weisse Türen weisser Korpus","Nicht im Sortiment","186 x 80 x 36cm","Nicht im Soritment"]
[0,null,"KAREN","3-1 Stühle","KAREN","CHR029005","Besucherstuhl Holz – Schwarze Füsse",null,"82 x 34 x 47cm","ja",23.75,{"$f":"Tableau1[[#This Row],[Listenpreis\nPromerka\n2018]]*0.75","v":17.8125}]
[0,null,"CHR02","3-1 Stühle",null,null,"Besucherstuhl Holz – Schwarze Füsse","Nicht im Sortiment","81 x 52 x 43cm","Nicht im Soritment"]
[0,null,"LISA","3-1 Stühle","LISA","ISO007","Besucherstuhl Kunststoff - Schwarze Füße",null,"81 x 55 x 55cm","ja",25,{"$f":"Tableau1[[#This Row],[Listenpreis\nPromerka\n2018]]*0.75","v":18.75}]
[0,null,"ISIS","3-1 Stühle","ISIS","ISO001","Besucherstuhl Stoff – Schwarze Füsse",null,"82 x 55 x 55cm","ja",28,{"$f":"Tableau1[[#This Row],[Listenpreis\nPromerka\n2018]]*0.75","v":21}]
[0,null,"ZURICH","3-1 Stühle","ZURICH","ZURICH","Z Barhocker – Chrom Füße",null,"85 x Ø37cm","ja",55,{"$f":"Tableau1[[#This Row],[Listenpreis\nPromerka\n2018]]*0.75","v":41.25}]
[0,null,"ANA","3-2 Stühle Büro","ANA",100004,"Bürodrehstuhl aus Leder, Schwingmechanismus, Farbe schwarz",null,"103-114x58x61cm","ja",123.3,{"$f":"Tableau1[[#This Row],[Listenpreis\nPromerka\n2018]]*0.75","v":92.474999999999994}]
[0,null,"ANDREA","3-2 Stühle Büro","ANDREA","AEROL","Bürodrehstuhl mit hoher Rückenlehnde, Rückenlehne aus Mesh, Farbe schwarz\nempfohlene Benützung: 4h/Tag",null,"105-117x65x48cm","ja",185.6,{"$f":"Tableau1[[#This Row],[Listenpreis\nPromerka\n2018]]*0.75","v":139.19999999999999}]
[0,null,"ELODIE","3-2 Stühle Büro","ELOISA","1850AR40D2","Bürodrehstuhl mit Lendenschutz, hohe Rückenlehnde aus schwarzer Mesh, einstellbar in Höhe, Sitz aus schwarzem Stoff, mulitfunktionale Armlehne, Unterstützung für Lende einstellbar in Höhe, synchronisierte Mechanik",null,"108-116x49-56x45cm","ja",378.9,{"$f":"Tableau1[[#This Row],[Listenpreis\nPromerka\n2018]]*0.75","v":284.17499999999995}]
[0,null,"PAOLA","3-2 Stühle Büro",null,null,"Direktionsessel Kruste Leder – Schwarze Füsse","Nicht im Sortiment","120 x 70 x 60cm","Nicht im Soritment"]
[0,null,"SLC012","3-2 Stühle Büro",null,null,"Direktionsessel mit Armlehnen – Silber Füsse","Nicht im Sortiment","75 x 160 x 80cm","Nicht im Soritment"]
[null,null,null,"3-2 Stühle Büro","PAOLA","SI-POLO-002","Drehstuhl schwarz gepolstert mit Armlehnen",null,"95.5-114.5 x 65 x 65cm","ja",85.25,{"$f":"Tableau1[[#This Row],[Listenpreis\nPromerka\n2018]]*0.75","v":63.9375}]
[0,null,"SUC024","3-2 Stühle Büro",null,null,"Ergonomischer Stuhl mit synchronmechanik, Armlehnen und Rückenlehne mit Netzbezug – Schwarze Füsse","Auf Anfrage erhältlich","106.5 x 65 x 63.5cm","Auf Anfrage"]
[0,null,"SIC220","3-2 Stühle Büro",null,null,"Ergonomischer Stuhl mit synchronmechanik, Armlehnen und Rückenlehne mit Netzbezug Lendenunterstützung regulierbar ","Auf Anfrage erhältlich","113.5 x 70.5 x 77cm","Auf Anfrage"]
[0,null,"FAVORIT","3-2 Stühle Büro",null,null,"Ergonomischer Stuhl synchronmechanik mit Armlehnen und Rücklehne – Schwarze Füsse","Nicht im Sortiment","108.5 x 63.5 x 59cm","Nicht im Soritment"]
[0,null,"HORSE","4-1 Bürobedarf","HORSE",5341302,"Flip-chart & Schreibtafel weiss",null,"107.5 x 75cm","ja",89.95,{"$f":"Tableau1[[#This Row],[Listenpreis\nPromerka\n2018]]*0.75","v":67.462500000000006}]
[0,null,"NET","4-1 Bürobedarf","NET",3439879,"Magnetischer Witheboard Wischer",null,null,"ja",11,{"$f":"Tableau1[[#This Row],[Listenpreis\nPromerka\n2018]]*0.75","v":8.25}]
[0,null,"COULEURS","4-1 Bürobedarf","COULEURS",1639327,"Marker für Whiteboard 4x",null,null,"ja",3.4,{"$f":"Tableau1[[#This Row],[Listenpreis\nPromerka\n2018]]*0.75","v":2.5499999999999998}]
[0,null,"DUST","4-1 Bürobedarf","DUST",452731,"Papierkorb Kunststoff 18 Liter",null,null,"ja",7,{"$f":"Tableau1[[#This Row],[Listenpreis\nPromerka\n2018]]*0.75","v":5.25}]
[0,null,85545,"4-1 Bürobedarf",null,null,"Stehleuchte mit Fuss 2 x 55 W oder 2 x 88 W","Nicht im Sortiment","195 x 30cm","Nicht im Soritment"]
[0,null,"CASPER","4-1 Bürobedarf","CASPER",2655966,"Whiteboard Aluminium - Weiss",null,"120 x 90cm","ja",39,{"$f":"Tableau1[[#This Row],[Listenpreis\nPromerka\n2018]]*0.75","v":29.25}]
[0,null,2656411,"4-1 Bürobedarf",null,2656411,"Whiteboard Aluminium - Weiss",null,"180 x 120cm","ja",170,{"$f":"Tableau1[[#This Row],[Listenpreis\nPromerka\n2018]]*0.75","v":127.5}]
[0,null,"MIKAEL","5-2 Schränke Regale","MIKAEL",5079256,"Regale in KIT, 4 Regalle, 200 Kg pro Regal, Montage ohne Schraube",null,"180 x 90 x 45cm","ja",57,{"$f":"Tableau1[[#This Row],[Listenpreis\nPromerka\n2018]]*0.75","v":42.75}]
[0,null,"ALASKA 014598","6-1 Heizer",null,null,"Klimaanlage 2500 W 8500 BTU","Nicht im Sortiment","95 x 52 x 40cm","Nicht im Soritment"]
[0,null,"EL-CO-005","6-1 Heizer",null,null,"Konvektor 1500 W","Nicht im Sortiment","44 x 74 x 11cm","Nicht im Soritment"]
[0,null,"GOBI","6-1 Heizer",null,null,"Konvektor 3 Gänge 750 W - 1250 W -2000 W","Nicht im Sortiment","37 x 59cm","Nicht im Soritment"]
[0,null,"EL-ROU-001","6-1 Heizer",null,null,"Rollen in Option","Nicht im Sortiment",null,"Nicht im Soritment"]
[0,null,"EL-CG-002","7-0 Küche & Haushalt",null,null,"Geschirrwärmer 10-12","Nicht im Sortiment","38 x 56 x 45.5cm","Nicht im Soritment"]
[0,null,"RE-KI-003","7-0 Küche & Haushalt",null,null,"Kleinküche Metall, mit 2 Kochplatten, Kühlschrank 92 L, Warmwasserboiler 5L, Amaturen, Spüle Edelstahl, Regal","Auf Anfrage erhältlich","86 x 120 x 60cm","Auf Anfrage"]
[0,null,"RE-KI-020","7-0 Küche & Haushalt",null,null,"Kochnische Holz","Nicht im Sortiment","87 x 120 x 60cm","Nicht im Soritment"]
[0,null,"HELSINKI\n 017315","7-0 Küche & Haushalt","HELSINI",20552,"Kühlschrank 118 Liter weiss mit Gefrierfach von 14 Liter",null,"85 x 55 x 58cm","ja",259,{"$f":"Tableau1[[#This Row],[Listenpreis\nPromerka\n2018]]*0.75","v":194.25}]
[0,null,"CANADA 011773","7-0 Küche & Haushalt","CANADA",11773,"Kühlschrank 225 Liter weiss mit Gefrierfach von 15 Liter",null,"142.5 x 55 x 56cm","ja",429,{"$f":"Tableau1[[#This Row],[Listenpreis\nPromerka\n2018]]*0.75","v":321.75}]
[0,null,"SIBIRIE 016066","7-0 Küche & Haushalt","SIBERIE",16066,"Kühlschrank 335 Liter weiss ohne Gefrierfach",null,"172.5 x 60 x 59cm","ja",499,{"$f":"Tableau1[[#This Row],[Listenpreis\nPromerka\n2018]]*0.75","v":374.25}]
[0,null,"VOSTOK 136987","7-0 Küche & Haushalt","VOSTOK",136987,"Kühlschrank 92 Liter weiss ohne Gefrierfach",null,"85 x 48 x 48cm","ja",229,{"$f":"Tableau1[[#This Row],[Listenpreis\nPromerka\n2018]]*0.75","v":171.75}]
[0,null,"SAHARA 0017503","7-0 Küche & Haushalt","SAHARA",19074,"Mikrowelle 700 W weiss 20 Liter",null,"26 x 44 x 34cm","ja",78,{"$f":"Tableau1[[#This Row],[Listenpreis\nPromerka\n2018]]*0.75","v":58.5}]
[0,null,"AC-LB-002","Sonstiges",null,"AC-LB-004","Stiefelputzer mit Wasseranschluss",null,"87 x 26 x 55cm","nein",371.75,{"$f":"Tableau1[[#This Row],[Listenpreis\nPromerka\n2018]]*0.75","v":278.8125}]
[1]